fUST/lending_fUST_20260107
["ID","MTS","AMOUNT","RATE_DAILY","PERIOD"]
[400609351,1767742250631,-732.95517046,0.00032876,2]
[400609352,1767742250640,-732.95517046,0.00032876,2]
[400609353,1767742250652,-732.95517046,0.00032876,2]
[400609354,1767742250661,-151.0,0.00032877,31]
[400609355,1767742250671,-151.0,0.00032877,31]
[400609356,1767742250683,-12275.25,0.00032877,10]
[400609357,1767742250694,-500.0,0.00032877,5]
[400609358,1767742250703,-1150.0,0.00032877,5]
[400609359,1767742250713,-151.0,0.00032877,31]
[400609360,1767742250724,-236.273015,0.00032877,31]
[400609361,1767742250733,-236.273015,0.00032877,31]
[400609362,1767742250744,-236.273015,0.00032877,31]
[400609363,1767742250753,-236.273009,0.00032877,31]
[400609364,1767742250762,-746.767727,0.00032877,31]
[400609365,1767742250771,-746.767727,0.00032877,31]
[400609366,1767742250780,-746.767727,0.00032877,31]
[400609367,1767742250790,-746.767724,0.00032877,31]
[400609368,1767742250800,-500.0,0.00032877,7]
[400609369,1767742250809,-541.79744446,0.00032877,7]
[400609370,1767742250818,-500.0,0.00032877,7]
[400609371,1767742250827,-615.75527161,0.00032877,7]
[400609372,1767742250836,-500.0,0.00032877,7]
[400609373,1767742250846,-500.0,0.00032877,7]
[400609374,1767742250855,-500.0,0.00032877,7]
[400609375,1767742250864,-500.0,0.00032877,7]
[400609376,1767742250874,-500.0,0.00032877,7]
[400609377,1767742250883,-500.0,0.00032877,7]
[400609378,1767742250892,-500.0,0.00032877,7]
[400609379,1767742250901,-500.0,0.00032877,7]
[400609380,1767742250911,-1235.12677463,0.00032885,120]
[400609381,1767742250920,-193.11075698,0.000329,120]
[400609382,1767742250930,-163.65081324,0.000329,120]
[400609383,1767742250940,-1202.74496589,0.000329,120]
[400609384,1767742250949,-1319.1,0.00032904,120]
[400609385,1767742250958,-10000.0,0.00032916,15]
[400609386,1767742250968,-2000.0,0.00032918,15]
[400609387,1767742250977,-299.5,0.00032928,5]
[400609388,1767742250987,-1319.1,0.00032931,120]
[400609389,1767742250999,-1319.1,0.00032958,120]
[400609390,1767742251009,-1319.1,0.00032986,120]
[400609391,1767742251020,-1000.0,0.00032986,14]
[400609392,1767742251032,-10000.0,0.00032998,20]
[400609393,1767742251041,-151.0,0.00032999,14]
[400609394,1767742251052,-4181.40895331,0.00033,120]
[400609395,1767742251062,-1760.41887495,0.00033,4]
[400609396,1767742251071,-44357.83912315,0.00033,20]
[400609397,1767742251082,-1100.0,0.00033006,14]
[400609398,1767742251092,-1319.1,0.00033013,120]
[400609399,1767742251101,-151.0,0.00033013,31]
[400609400,1767742251111,-5000.0,0.00033013,31]
[400609401,1767742251120,-5000.0,0.00033013,31]
[400609402,1767742251130,-5000.0,0.00033013,31]
[400609403,1767742251139,-5000.0,0.00033013,31]
[400609404,1767742251149,-285.621223,0.00033013,28]
[400609405,1767742251158,-285.621223,0.00033013,28]
[400609406,1767742251168,-285.621223,0.00033013,28]
[400609407,1767742251178,-285.621223,0.00033013,28]
[400609408,1767742251190,-151.0,0.00033013,31]
[400609409,1767742251199,-271.757998,0.00033013,31]
[400609410,1767742251211,-263.925561,0.00033013,31]
[400609411,1767742251223,-1319.1,0.00033041,120]
[400609412,1767742251233,-1319.1,0.00033068,120]
[400609413,1767742251242,-1319.1,0.00033095,120]
[400609414,1767742251253,-1500.0,0.000331,16]
[400609415,1767742251263,-1000.0,0.00033105,14]
[400609416,1767742251273,-1319.1,0.00033123,120]
[400609417,1767742251283,-2344.99085773,0.00033129,2]
[400609418,1767742251294,-4491.99883709,0.00033148,34]
[400609419,1767742251303,-10000.0,0.00033149,30]
[400609420,1767742251313,-787.72,0.0003315,34]
[400609421,1767742251323,-1319.1,0.0003315,120]
[400609422,1767742251333,-1319.1,0.00033178,120]
[400609423,1767742251343,-193.7123872,0.00033178,30]
[400609424,1767742251352,-600.6566519,0.00033178,30]
[400609425,1767742251362,-600.6566519,0.00033178,30]
[400609426,1767742251372,-600.6566519,0.00033178,30]
[400609427,1767742251381,-10000.0,0.00033199,30]
[400609428,1767742251391,-224.03,0.000332,7]
[400609429,1767742251401,-300.42,0.000332,7]
[400609430,1767742251411,-2612.25,0.000332,30]
[400609431,1767742251420,-295.33605295,0.000332,117]
[400609432,1767742251429,-295.33605291,0.000332,117]
[400609433,1767742251439,-295.33605291,0.000332,117]
[400609434,1767742251449,-295.33605291,0.000332,117]
[400609435,1767742251459,-1319.1,0.00033205,120]
[400609436,1767742251469,-1000.0,0.00033224,14]
[400609437,1767742251478,-1319.1,0.00033232,120]
[400609438,1767742251487,-1319.1,0.0003326,120]
[400609439,1767742251496,-2344.99085773,0.0003326,2]
[400609440,1767742251506,-1319.1,0.00033287,120]
[400609441,1767742251515,-1319.1,0.00033315,120]
[400609442,1767742251525,-1319.1,0.00033342,120]
[400609443,1767742251534,-1000.0,0.00033343,14]
[400609444,1767742251544,-1319.1,0.00033369,120]
[400609445,1767742251553,-1319.1,0.00033397,120]
[400609446,1767742251563,-1319.1,0.00033424,120]
[400609447,1767742251573,-1319.1,0.00033452,120]
[400609448,1767742251583,-2000.0,0.00033461,7]
[400609449,1767742251592,-1000.0,0.00033461,14]
[400609450,1767742251604,-1319.1,0.00033479,120]
[400609451,1767742251614,-1319.28,0.00033506,120]
[400609452,1767742251623,-2344.99085773,0.00033529,2]
[400609453,1767742251633,-3285.51526256,0.00033576,2]
[400609454,1767742251642,-1000.0,0.0003358,14]
[400609455,1767742251656,-1500.0,0.000336,16]
[400609456,1767742251666,-787.72,0.00033698,35]
[400609457,1767742251676,-210.0,0.00033699,5]
[400609458,1767742251686,-1000.0,0.00033699,14]
[400609459,1767742251696,-2344.99085773,0.00033758,2]
[400609460,1767742251706,-600.0,0.0003376,30]
[400609461,1767742251718,-10000.0,0.00033768,30]
[400609462,1767742251729,-667.3621817,0.00033789,2]
[400609463,1767742251739,-3080.4458762,0.00033793,2]
[400609464,1767742251748,-391.03108,0.00033793,2]
[400609465,1767742251758,-498.99,0.000338,2]
[400609466,1767742251767,-22465.31,0.000338,14]
[400609467,1767742251777,-151.418138,0.000338,31]
[400609468,1767742251786,-151.0,0.000338,31]
[400609469,1767742251795,-151.0,0.000338,31]
[400609470,1767742251806,-151.0,0.000338,31]
[400609471,1767742251816,-151.0,0.000338,31]
[400609472,1767742251826,-151.0,0.000338,31]
[400609473,1767742251835,-151.0,0.000338,31]
[400609474,1767742251846,-219.665372,0.000338,31]
[400609475,1767742251855,-219.665372,0.000338,31]
[400609476,1767742251864,-219.665372,0.000338,31]
[400609477,1767742251873,-219.665372,0.000338,31]
[400609478,1767742251892,-166.442051,0.000338,31]
[400609479,1767742251902,-166.442051,0.000338,31]
[400609480,1767742251911,-166.442051,0.000338,31]
[400609481,1767742251920,-166.442051,0.000338,31]
[400609482,1767742251929,-376.145115,0.000338,31]
[400609483,1767742251938,-376.145115,0.000338,31]
[400609484,1767742251947,-376.145115,0.000338,31]
[400609485,1767742251957,-376.145115,0.000338,31]
[400609486,1767742251966,-1000.0,0.00033818,14]
[400609487,1767742251975,-1100.0,0.00033828,14]
[400609488,1767742251985,-1202.74496589,0.000339,120]
[400609489,1767742251994,-1000.0,0.00033937,14]
[400609490,1767742252003,-800.0,0.00033973,2]
[400609491,1767742252012,-2573.21019914,0.00034,120]
[400609492,1767742252021,-1032.9531429,0.00034,2]
[400609493,1767742252031,-193.7123872,0.00034,30]
[400609494,1767742252040,-619.3481601,0.00034,30]
[400609495,1767742252049,-600.6566519,0.00034,30]
[400609496,1767742252058,-183.8784189,0.00034,30]
[400609497,1767742252067,-600.6566519,0.00034,30]
[400609498,1767742252077,-600.6566519,0.00034,30]
[400609499,1767742252086,-600.6566519,0.00034,30]
[400609500,1767742252095,-600.6566519,0.00034,30]
[400609501,1767742252104,-600.6566519,0.00034,30]
[400609502,1767742252113,-600.6566519,0.00034,30]
[400609503,1767742252123,-311.9987942,0.00034,30]
[400609504,1767742252132,-800.0,0.00034009,2]
[400609505,1767742252141,-800.0,0.00034015,2]
[400609506,1767742252150,-2344.99085773,0.00034041,2]
[400609507,1767742252160,-800.0,0.0003405,2]
[400609508,1767742252169,-1000.0,0.00034056,14]
[400609509,1767742252180,-264.749291,0.00034056,31]
[400609510,1767742252189,-200.222601,0.00034056,31]
[400609511,1767742252199,-264.749291,0.00034056,31]
[400609512,1767742252209,-200.222601,0.00034056,31]
[400609513,1767742252219,-264.749291,0.00034056,31]
[400609514,1767742252228,-200.222601,0.00034056,31]
[400609515,1767742252237,-264.749291,0.00034056,31]
[400609516,1767742252247,-200.222601,0.00034056,31]
[400609517,1767742252257,-151.0,0.00034056,31]
[400609518,1767742252267,-162.040453,0.00034056,31]
[400609519,1767742252276,-151.0,0.00034056,31]
[400609520,1767742252285,-151.0,0.00034056,31]
[400609521,1767742252295,-151.0,0.00034056,31]
[400609522,1767742252304,-151.0,0.00034056,31]
[400609523,1767742252313,-151.0,0.00034056,31]
[400609524,1767742252322,-151.0,0.00034056,31]
[400609525,1767742252332,-151.0,0.00034056,31]
[400609526,1767742252341,-159.089641,0.00034056,31]
[400609527,1767742252351,-418.554303,0.00034056,31]
[400609528,1767742252360,-418.554303,0.00034056,31]
[400609529,1767742252370,-418.554303,0.00034056,31]
[400609530,1767742252379,-418.554303,0.00034056,31]
[400609531,1767742252389,-151.0,0.00034056,31]
[400609532,1767742252398,-151.0,0.00034056,31]
[400609533,1767742252408,-151.0,0.00034056,31]
[400609534,1767742252418,-151.0,0.00034056,31]
[400609535,1767742252428,-2926.95,0.000341,7]
[400609536,1767742252437,-151.0,0.000341,31]
[400609537,1767742252447,-284.613576,0.000341,31]
[400609538,1767742252456,-151.0,0.000341,31]
[400609539,1767742252466,-151.0,0.000341,31]
[400609540,1767742252476,-151.0,0.000341,31]
[400609541,1767742252485,-151.0,0.000341,31]
[400609542,1767742252494,-151.0,0.000341,31]
[400609543,1767742252503,-151.0,0.000341,31]
[400609544,1767742252514,-194.712966,0.000341,31]
[400609545,1767742252527,-194.712966,0.000341,31]
[400609546,1767742252537,-194.712966,0.000341,31]
[400609547,1767742252547,-194.712966,0.000341,31]
[400609548,1767742252556,-368.071407,0.000341,31]
[400609549,1767742252565,-368.071407,0.000341,31]
[400609550,1767742252574,-368.071407,0.000341,31]
[400609551,1767742252583,-368.071407,0.000341,31]
[400609552,1767742252593,-1500.0,0.000341,16]
[400609553,1767742252602,-800.0,0.00034134,2]
[400609554,1767742252612,-1000.0,0.00034175,14]
[400609555,1767742252621,-10000.0,0.00034245,30]
[400609556,1767742252630,-10000.0,0.00034245,30]
[400609557,1767742252639,-787.72,0.00034246,36]
[400609558,1767742252652,-1749.78,0.00034246,120]
[400609559,1767742252661,-800.0,0.00034287,2]
[400609560,1767742252670,-1000.0,0.00034293,14]
[400609561,1767742252680,-745.0,0.0003433,11]
[400609562,1767742252690,-800.0,0.00034338,2]
[400609563,1767742252699,-800.0,0.00034351,2]
[400609564,1767742252709,-2344.99085783,0.00034358,2]
[400609565,1767742252718,-800.0,0.00034365,2]
[400609566,1767742252729,-800.0,0.00034381,2]
[400609567,1767742252739,-151.0,0.0003439,7]
[400609568,1767742252748,-2000.0,0.00034395,7]
[400609569,1767742252758,-376.8200359,0.00034411,30]
[400609570,1767742252767,-1000.0,0.00034412,14]
[400609571,1767742252777,-10000.0,0.00034454,6]
[400609572,1767742252786,-800.0,0.00034462,2]
[400609573,1767742252796,-299.5,0.00034464,6]
[400609574,1767742252810,-184.3704767,0.00034493,30]
[400609575,1767742252820,-184.3704767,0.00034493,30]
[400609576,1767742252830,-184.3704767,0.00034493,30]
[400609577,1767742252840,-184.3704767,0.00034493,30]
[400609578,1767742252849,-184.3704767,0.00034493,30]
[400609579,1767742252858,-184.3704767,0.00034493,30]
[400609580,1767742252868,-184.3704767,0.00034493,30]
[400609581,1767742252877,-184.3704767,0.00034493,30]
[400609582,1767742252887,-184.3704767,0.00034493,30]
[400609583,1767742252897,-184.3704767,0.00034493,30]
[400609584,1767742252906,-184.3704767,0.00034493,30]
[400609585,1767742252916,-184.3704767,0.00034493,30]
[400609586,1767742252926,-184.3704767,0.00034493,30]
[400609587,1767742252935,-184.3704767,0.00034493,30]
[400609588,1767742252945,-184.3704767,0.00034493,30]
[400609589,1767742252955,-184.3704767,0.00034493,30]
[400609590,1767742252964,-184.3704767,0.00034493,30]
[400609591,1767742252974,-771.07031179,0.00034515,120]
[400609592,1767742252984,-10000.0,0.0003452,5]
[400609593,1767742252993,-270.0,0.00034521,5]
[400609594,1767742253003,-1000.0,0.00034531,14]
[400609595,1767742253013,-171.97363199,0.00034542,2]
[400609596,1767742253023,-800.0,0.00034546,2]
[400609597,1767742253032,-151.0,0.0003456,31]
[400609598,1767742253043,-1364.653193,0.0003456,9]
[400609599,1767742253053,-153.976582,0.0003456,31]
[400609600,1767742253063,-151.0,0.0003456,31]
[400609601,1767742253074,-151.0,0.0003456,31]
[400609602,1767742253084,-677.96642,0.0003456,31]
[400609603,1767742253094,-677.96642,0.0003456,31]
[400609604,1767742253104,-677.96642,0.0003456,31]
[400609605,1767742253114,-677.96642,0.0003456,31]
[400609606,1767742253124,-600.0,0.0003456,2]
[400609607,1767742253135,-1000.0,0.0003458,9]
[400609608,1767742253144,-1205.834353,0.0003458,9]
[400609609,1767742253154,-199.436529,0.0003458,31]
[400609610,1767742253164,-199.436529,0.0003458,31]
[400609611,1767742253173,-199.436529,0.0003458,31]
[400609612,1767742253300,-199.436529,0.0003458,31]
[400609613,1767742253311,-409.331105,0.0003458,31]
[400609614,1767742253321,-409.331105,0.0003458,31]
[400609615,1767742253331,-151.0,0.0003458,31]
[400609616,1767742253341,-153.79045,0.0003458,31]
[400609617,1767742253351,-409.331105,0.0003458,31]
[400609618,1767742253361,-151.0,0.0003458,31]
[400609619,1767742253371,-409.331105,0.0003458,31]
[400609620,1767742253381,-10000.0,0.00034598,8]
[400609621,1767742253392,-10000.0,0.00034599,9]
[400609622,1767742253402,-10000.0,0.00034599,10]
[400609623,1767742253412,-10000.0,0.00034599,16]
[400609624,1767742253422,-224.03,0.000346,7]
[400609625,1767742253432,-300.42,0.000346,7]
[400609626,1767742253442,-2612.25,0.000346,30]
[400609627,1767742253453,-1000.0,0.000346,9]
[400609628,1767742253462,-1000.0,0.000346,9]
[400609629,1767742253472,-250.0,0.000346,10]
[400609630,1767742253482,-777.0,0.000346,2]
[400609631,1767742253491,-449.0,0.000346,2]
[400609632,1767742253501,-1500.0,0.000346,16]
[400609633,1767742253511,-10000.0,0.00034604,2]
[400609634,1767742253520,-800.0,0.00034609,2]
[400609635,1767742253530,-151.0,0.00034609,31]
[400609636,1767742253540,-151.0,0.00034609,31]
[400609637,1767742253550,-268.05037,0.00034609,31]
[400609638,1767742253560,-151.0,0.00034609,31]
[400609639,1767742253570,-151.0,0.00034609,31]
[400609640,1767742253579,-207.414308,0.00034609,31]
[400609641,1767742253589,-200.0,0.00034609,7]
[400609642,1767742253599,-200.0,0.00034609,7]
[400609643,1767742253609,-200.0,0.00034609,7]
[400609644,1767742253618,-200.0,0.00034609,7]
[400609645,1767742253628,-200.0,0.00034609,7]
[400609646,1767742253638,-200.0,0.00034609,7]
[400609647,1767742253649,-333.867023,0.00034609,31]
[400609648,1767742253662,-333.867023,0.00034609,31]
[400609649,1767742253672,-333.867023,0.00034609,31]
[400609650,1767742253682,-333.867023,0.00034609,31]
[400609651,1767742253693,-10000.0,0.00034622,11]
[400609652,1767742253703,-10000.0,0.00034629,30]
[400609653,1767742253713,-177.0,0.0003463,71]
[400609654,1767742253724,-10000.0,0.00034648,30]
[400609655,1767742253734,-2487.15318209,0.00034649,14]
[400609656,1767742253744,-2579.17784983,0.00034649,14]
[400609657,1767742253753,-2674.60743027,0.00034649,14]
[400609658,1767742253763,-2773.56790519,0.00034649,14]
[400609659,1767742253772,-2876.18991768,0.00034649,14]
[400609660,1767742253782,-2982.60894464,0.00034649,14]
[400609661,1767742253791,-3092.96547559,0.00034649,14]
[400609662,1767742253801,-3207.40519818,0.00034649,14]
[400609663,1767742253811,-3326.07919052,0.00034649,14]
[400609664,1767742253820,-3449.14412057,0.00034649,14]
[400609665,1767742253830,-3576.76245303,0.00034649,14]
[400609666,1767742253840,-500.0,0.00034649,14]
[400609667,1767742253850,-500.0,0.00034649,14]
[400609668,1767742253859,-500.0,0.00034649,14]
[400609669,1767742253869,-500.0,0.00034649,14]
[400609670,1767742253880,-500.0,0.00034649,14]
[400609671,1767742253890,-572.67465822,0.00034649,14]
[400609672,1767742253899,-10000.0,0.00034649,7]
[400609673,1767742253910,-10000.0,0.00034649,14]
[400609674,1767742253920,-10000.0,0.00034649,4]
[400609675,1767742253929,-10000.0,0.00034649,30]
[400609676,1767742253939,-160.0,0.00034649,14]
[400609677,1767742253949,-160.0,0.00034649,14]
[400609678,1767742253962,-265.97969829,0.00034649,14]
[400609679,1767742253972,-187.78006525,0.00034649,14]
[400609680,1767742253982,-2030.296672,0.00034649,7]
[400609681,1767742253992,-161.9011013,0.00034649,14]
[400609682,1767742254001,-2105.41764886,0.00034649,7]
[400609683,1767742254011,-152.35382253,0.00034649,14]
[400609684,1767742254021,-2183.31810187,0.00034649,7]
[400609685,1767742254031,-2264.10087164,0.00034649,7]
[400609686,1767742254042,-151.0,0.00034649,14]
[400609687,1767742254051,-2018.61215787,0.00034649,7]
[400609688,1767742254061,-151.0,0.00034649,14]
[400609689,1767742254071,-196.9088468,0.00034649,14]
[400609690,1767742254080,-255.24985543,0.00034649,14]
[400609691,1767742254089,-514.84070869,0.00034649,14]
[400609692,1767742254099,-533.88981491,0.00034649,14]
[400609693,1767742254108,-500.0,0.00034649,14]
[400609694,1767742254118,-151.0,0.00034649,14]
[400609695,1767742254127,-553.64373807,0.00034649,14]
[400609696,1767742254136,-500.0,0.00034649,14]
[400609697,1767742254145,-574.12855637,0.00034649,14]
[400609698,1767742254155,-500.0,0.00034649,14]
[400609699,1767742254164,-595.37131296,0.00034649,14]
[400609700,1767742254173,-500.0,0.00034649,14]
[400609701,1767742254183,-617.40005154,0.00034649,14]
[400609702,1767742254192,-500.0,0.00034649,14]
[400609703,1767742254202,-640.24385345,0.00034649,14]
[400609704,1767742254211,-500.0,0.00034649,14]
[400609705,1767742254221,-500.0,0.00034649,14]
[400609706,1767742254231,-500.0,0.00034649,14]
[400609707,1767742254241,-500.0,0.00034649,14]
[400609708,1767742254250,-688.49839244,0.00034649,14]
[400609709,1767742254260,-500.0,0.00034649,14]
[400609710,1767742254269,-713.97283296,0.00034649,14]
[400609711,1767742254279,-500.0,0.00034649,14]
[400609712,1767742254289,-740.38982778,0.00034649,14]
[400609713,1767742254298,-500.0,0.00034649,14]
[400609714,1767742254307,-767.7842514,0.00034649,14]
[400609715,1767742254317,-500.0,0.00034649,14]
[400609716,1767742254328,-796.19226871,0.00034649,14]
[400609717,1767742254339,-500.0,0.00034649,14]
[400609718,1767742254349,-825.65138265,0.00034649,14]
[400609719,1767742254358,-250.0,0.00034649,14]
[400609720,1767742254368,-250.0,0.00034649,14]
[400609721,1767742254378,-250.0,0.00034649,14]
[400609722,1767742254387,-250.0,0.00034649,14]
[400609723,1767742254397,-250.0,0.00034649,14]
[400609724,1767742254407,-250.0,0.00034649,14]
[400609725,1767742254417,-250.0,0.00034649,14]
[400609726,1767742254427,-424.0,0.0003465,30]
[400609727,1767742254436,-1100.0,0.0003465,14]
[400609728,1767742254446,-357.37586378,0.0003465,7]
[400609729,1767742254455,-166.0,0.0003465,7]
[400609730,1767742254465,-166.0,0.0003465,7]
[400609731,1767742254474,-152.0,0.0003465,7]
[400609732,1767742254484,-163.0,0.0003465,7]
[400609733,1767742254494,-152.0,0.0003465,7]
[400609734,1767742254503,-166.0,0.0003465,7]
[400609735,1767742254513,-152.0,0.0003465,7]
[400609736,1767742254522,-163.0,0.0003465,7]
[400609737,1767742254531,-152.0,0.0003465,7]
[400609738,1767742254540,-152.0,0.0003465,7]
[400609739,1767742254550,-152.0,0.0003465,7]
[400609740,1767742254559,-185.22374852,0.0003465,7]
[400609741,1767742254568,-153.76138875,0.0003465,7]
[400609742,1767742254578,-152.0,0.0003465,7]
[400609743,1767742254588,-152.0,0.0003465,7]
[400609744,1767742254597,-152.0,0.0003465,7]
[400609745,1767742254607,-152.0,0.0003465,7]
[400609746,1767742254619,-152.0,0.0003465,7]
[400609747,1767742254628,-284.0,0.0003465,7]
[400609748,1767742254638,-7220.38461701,0.0003465,4]
[400609749,1767742254650,-20183.47308349,0.0003465,4]
[400609750,1767742254659,-574.71139926,0.0003465,14]
[400609751,1767742254670,-1934899.65315653,0.0003465,4]
[400609752,1767742254688,-590.20098587,0.0003465,4]
[400609753,1767742254702,-99450.91142333,0.0003465,4]
[400609754,1767742254811,-151.0,0.00024142,2]
[400609755,1767742254820,-151.0,0.000249,7]
[400609756,1767742254830,-151.0,0.000249,7]
[400609757,1767742254840,-151.0,0.00027,7]
[400609758,1767742254849,-151.0,0.00027,7]
[400609759,1767742254861,-151.0,0.00032718,31]
[400609760,1767742254871,-151.0,0.00032867,31]
[400609761,1767742254881,-732.95517046,0.00032876,2]
[400609762,1767742254891,-250.0,0.00034649,14]
[400609763,1767742254901,-250.0,0.00034649,14]
[400609764,1767742254910,-250.0,0.00034649,14]
[400609765,1767742254921,-24683.14439399,0.0003465,4]
[400609766,1767742254944,-250.0,0.00034649,14]
[400609767,1767742254953,-45824.46816451,0.0003465,4]
[400609768,1767742255136,-151.0,0.00024142,2]
[400609769,1767742255146,-151.0,0.00024142,2]
[400609770,1767742255156,-151.0,0.000249,7]
[400609771,1767742255166,-151.0,0.00032718,31]
[400609772,1767742255177,-151.0,0.00032867,31]
[400609773,1767742255187,-184.3704767,0.00034493,30]
[400609774,1767742255196,-250.0,0.00034649,14]
[400609775,1767742255206,-250.0,0.00034649,14]
[400609776,1767742255215,-250.0,0.00034649,14]
[400609777,1767742255225,-49.35290746,0.00034649,14]
[400609778,1767742255279,-200.64709254,0.00034649,14]
[400609779,1767742255289,-250.0,0.00034649,14]
[400609780,1767742255298,-62.07022406,0.00034649,14]
[400609783,1767742272971,2000.0,0.00026411,120]
[400609784,1767742273256,2000.0,0.00026411,120]
[400609785,1767742273586,2000.0,0.00026411,120]
[400609786,1767742273917,188.515,0.00026411,120]
[400609787,1767742276319,1000.0,0.00026411,120]
[400609788,1767742276670,1000.0,0.00026411,120]
[400609789,1767742276951,1000.0,0.00026411,120]
[400609790,1767742277731,1000.0,0.00026411,120]
[400609791,1767742278090,1000.0,0.00026411,120]
[400609792,1767742278399,1000.0,0.00026411,120]
[400609793,1767742278706,1000.0,0.00026411,120]
[400609794,1767742279093,1000.0,0.00026411,120]
[400609795,1767742324973,492.0,0.0003,120]
[400609797,1767742341389,475.0,0.00026411,120]
[400609798,1767742341722,475.0,0.00026411,120]
[400609799,1767742342061,475.0,0.00026411,120]
[400609800,1767742342362,475.0,0.00026411,120]
[400609801,1767742342679,475.0,0.00026411,120]
[400609802,1767742342977,475.0,0.00026411,120]
[400609803,1767742343318,475.0,0.00026411,120]
[400609804,1767742343638,475.0,0.00026411,120]
[400609805,1767742343975,475.0,0.00026411,120]
[400609806,1767742344301,475.0,0.00026411,120]
[400609807,1767742344649,475.0,0.00026411,120]
[400609808,1767742344920,475.0,0.00026411,120]
[400609814,1767742407603,1000.0,0.00026411,120]
[400609815,1767742410333,475.0,0.00026411,120]
[400609816,1767742410651,475.0,0.00026411,120]
[400609817,1767742410976,475.0,0.00026411,120]
[400609818,1767742411370,475.0,0.00026411,120]
[400609819,1767742411599,475.0,0.00026411,120]
[400609820,1767742411933,475.0,0.00026411,120]
[400609821,1767742412247,475.0,0.00026411,120]
[400609822,1767742412574,475.0,0.00026411,120]
[400609823,1767742412899,475.0,0.00026411,120]
[400609824,1767742413200,475.0,0.00026411,120]
[400609825,1767742413515,475.0,0.00026411,120]
[400609826,1767742413826,475.0,0.00026411,120]
[400609827,1767742414119,475.0,0.00026411,120]
[400609828,1767742414433,475.0,0.00026411,120]
[400609829,1767742414730,475.0,0.00026411,120]
[400609830,1767742415048,475.0,0.00026411,120]
[400609831,1767742415362,475.0,0.00026411,120]
[400609832,1767742415673,475.0,0.00026411,120]
[400609833,1767742416004,475.0,0.00026411,120]
[400609834,1767742416319,475.0,0.00026411,120]
[400609835,1767742416623,475.0,0.00026411,120]
[400609836,1767742416930,475.0,0.00026411,120]
[400609837,1767742417250,475.0,0.00026411,120]
[400609838,1767742417555,475.0,0.00026411,120]
[400609839,1767742417900,475.0,0.00026411,120]
[400609840,1767742418272,475.0,0.00026411,120]
[400609841,1767742418640,475.0,0.00026411,120]
[400609842,1767742419002,475.0,0.00026411,120]
[400609843,1767742419364,475.0,0.00026411,120]
[400609844,1767742419680,475.0,0.00026411,120]
[400609845,1767742420035,475.0,0.00026411,120]
[400609846,1767742420350,475.0,0.00026411,120]
[400609847,1767742420656,475.0,0.00026411,120]
[400609848,1767742420954,475.0,0.00026411,120]
[400609849,1767742421359,475.0,0.00026411,120]
[400609850,1767742421779,475.0,0.00026411,120]
[400609851,1767742422054,475.0,0.00026411,120]
[400609852,1767742422366,475.0,0.00026411,120]
[400609853,1767742422663,475.0,0.00026411,120]
[400609860,1767742781156,171.06,9.119e-05,2]
[400609861,1767742781592,199.57,9.47e-05,2]
[400609862,1767742782030,228.09,9.821e-05,2]
[400609863,1767742782478,256.6,0.00010171,2]
[400609864,1767742782898,285.11,0.00010522,2]